[Event "2nd Cambridge Open 2024"]
[Site "Cambridge"]
[Date "2024.02.24"]
[Round "8.35"]
[White "Simpson, Ben"]
[Black "Bradbury, Neil H"]
[Result "0-1"]
[ECO "E49"]
[WhiteElo "1873"]
[BlackElo "2217"]
[Annotator "RC"]
[PlyCount "86"]
[EventDate "2024.02.18"]
[EventType "swiss"]
[EventCountry "ENG"]
[SourceTitle "playchess.com"]
[Source "ChessBase"]
[SourceQuality "1"]
[TimeControl "5400+30"]

1. d4 {[%emt 0:00:03]} Nf6 {[%emt 0:00:06]} 2. c4 {[%emt 0:00:01]} e6 {[%emt 0:00:09]} 3. Nc3 {[%emt 0:00:03]} Bb4 {[%emt 0:00:08]} 4. e3 {[%emt 0:00:04]} O-O {[%emt 0:00:35]} 5. Bd3 {[%emt 0:00:03]} d5 {[%emt 0:00:58]} 6. a3 {[%emt 0:01:26]} Bxc3+ {[%emt 0:04:36]} 7. bxc3 {[%emt 0:00:02]} dxc4 {[%emt 0:00:08]} 8. Bxc4 {[%emt 0:00:14]} c5 {[%emt 0:00:14]} 9. Ne2 {[%emt 0:05:29]} Qc7 {[%emt 0:00:57]} 10. Bd3 {[%emt 0:01:38]} e5 {[%emt 0:10:18]} 11. dxe5 {[%emt 0:05:44]} Qxe5 {[%emt 0:02:18]} 12. O-O {[%emt 0:00:42]} Nc6 {[%emt 0:07:49]} 13. f4 {[%emt 0:07:01]} Qe7 {[%emt 0:01:55]} 14. Qc2 {[%emt 0:03:19]} Rd8 {[%emt 0:04:57]} 15. Ng3 {[%emt 0:07:53]} h5 {[%emt 0:05:42]} 16. h3 {[%emt 0:12:54]} Na5 {[%emt 0:18:18]} 17. c4 {[%emt 0:12:11]} h4 {[%emt 0:00:14]} 18. Nh1 {[%emt 0:02:50]} Nh5 {[%emt 0:06:51]} 19. Nf2 {[%emt 0:05:20]} b6 {[%emt 0:06:08]} 20. Qc3 {[%emt 0:03:36]} Bb7 {[%emt 0:01:43]} 21. Bb2 {[%emt 0:00:53]} f6 {[%emt 0:03:50]} 22. Bb1 {[%emt 0:06:32]} Ng3 {[%emt 0:04:05]} 23. Qc2 {[%emt 0:00:28]} f5 {[%emt 0:01:11]} 24. Re1 {[%emt 0:03:00]} Rd7 {[%emt 0:02:43]} 25. Be5 {[%emt 0:07:47]} Rad8 {[%emt 0:00:55]} 26. Ra2 {[%emt 0:02:13]} Qf7 {[%emt 0:02:46]} 27. e4 {[%emt 0:06:05]} Nxe4 {[%emt 0:08:50]} 28. Nxe4 {[%emt 0:04:08]} fxe4 {[%emt 0:00:08]} 29. Rxe4 {[%emt 0:00:47]} Rd1+ {[%emt 0:02:46]} 30. Kh2 {[%emt 0:00:01]} Rxb1 {[%emt 0:03:05]} 31. Qxb1 {[%emt 0:00:23]} Bxe4 {[%emt 0:00:25]} 32. Qxe4 {[%emt 0:00:02]} Nxc4 {[%emt 0:00:35]} 33. Re2 {[%emt 0:01:56]} Re8 {[%emt 0:00:28]} 34. a4 {[%emt 0:00:57]} Nd6 {[%emt 0:00:29]} 35. Qc6 {[%emt 0:00:50]} Nf5 {[%emt 0:00:31]} 36. Rd2 {[%emt 0:00:17]} Nd4 {[%emt 0:01:08]} 37. Bxd4 {[%emt 0:00:50]} Qxf4+ {[%emt 0:00:02]} 38. Kh1 {[%emt 0:00:25]} Re1+ {[%emt 0:00:05]} 39. Bg1 {[%emt 0:00:02]} Qxd2 {[%emt 0:00:21]} 40. Qc8+ {[%emt 0:00:17]} Kh7 {[%emt 0:00:50]} 41. Qf5+ {[%emt 0:00:06]} Kh6 {[%emt 0:00:12]} 42. Kh2 {[%emt 0:00:29]} Qd6+ {[%emt 0:00:20]} 43. Kh1 {[%emt 0:00:01]} Qd4 {[%emt 0:00:18]} 0-1

[Event "2nd Cambridge Open 2024"]
[Site "Cambridge"]
[Date "2024.02.24"]
[Round "8.36"]
[White "Wheatley, Wilfred"]
[Black "Mihalik, Agoston"]
[Result "0-1"]
[ECO "B22"]
[WhiteElo "1864"]
[BlackElo "2146"]
[Annotator "RC"]
[PlyCount "118"]
[EventDate "2024.02.18"]
[EventType "swiss"]
[EventCountry "ENG"]
[SourceTitle "playchess.com"]
[Source "ChessBase"]
[SourceQuality "1"]
[TimeControl "5400+30"]

1. e4 {[%emt 0:00:04]} c5 {[%emt 0:00:07]} 2. c3 {[%emt 0:00:07]} d5 {[%emt 0:01:53]} 3. exd5 {[%emt 0:01:04]} Qxd5 {[%emt 0:00:04]} 4. d4 {[%emt 0:00:23]} e6 {[%emt 0:00:30]} 5. Nf3 {[%emt 0:00:36]} Nf6 {[%emt 0:00:06]} 6. Be2 {[%emt 0:03:21]} Nc6 {[%emt 0:02:35]} 7. Na3 {[%emt 0:02:57]} cxd4 {[%emt 1:28:45]} 8. Nb5 {[%emt 0:04:16]} Qd8 {[%emt 0:00:00]} 9. Nbxd4 {[%emt 0:01:25]} Qb6 {[%emt 0:00:00]} 10. O-O {[%emt 0:01:26]} Bc5 {[%emt 0:00:00]} 11. Nxc6 {[%emt 0:10:18]} bxc6 {[%emt 0:00:00]} 12. b4 {[%emt 0:00:57]} Be7 {[%emt 0:00:00]} 13. Ne5 {[%emt 0:07:24]} O-O {[%emt 0:00:00]} 14. Be3 {[%emt 0:04:19]} Qc7 {[%emt 0:00:00]} 15. Nd3 {[%emt 0:04:03]} Nd5 {[%emt 0:00:00]} 16. Bd4 {[%emt 0:01:14]} Bd6 {[%emt 0:00:00]} 17. c4 {[%emt 0:11:46]} Nxb4 {[%emt 0:00:00]} 18. Nxb4 {[%emt 0:06:48]} Bxb4 {[%emt 0:00:00]} 19. Qc1 {[%emt 0:02:35]} e5 {[%emt 0:00:00]} 20. Be3 {[%emt 0:02:37]} Be7 {[%emt 0:00:00]} 21. c5 {[%emt 0:04:17]} Be6 {[%emt 0:00:00]} 22. f4 {[%emt 0:01:07]} Bd5 {[%emt 0:00:00]} 23. f5 {[%emt 0:02:19]} f6 {[%emt 0:00:00]} 24. Qe1 {[%emt 0:05:12]} Rab8 {[%emt 0:00:00]} 25. Qc3 {[%emt 0:01:27]} a5 {[%emt 0:00:00]} 26. h4 {[%emt 0:08:30]} Rb4 {[%emt 0:00:00]} 27. h5 {[%emt 0:02:44]} h6 {[%emt 0:00:00]} 28. Rfc1 {[%emt 0:00:40]} Rfb8 {[%emt 0:00:00]} 29. Bd2 {[%emt 0:01:37]} Bf8 {[%emt 0:00:00]} 30. a3 {[%emt 0:04:53]} Rb2 {[%emt 0:11:30]} 31. Bf1 {[%emt 0:00:55]} Qd7 {[%emt 0:00:00]} 32. Rc2 {[%emt 0:03:18]} R2b3 {[%emt 0:00:00]} 33. Qxa5 {[%emt 0:00:29]} Qxf5 {[%emt 0:00:00]} 34. Rac1 {[%emt 0:01:07]} Qe4 {[%emt 0:00:00]} 35. Bb4 {[%emt 0:00:51]} Qd4+ {[%emt 0:00:00]} 36. Kh2 {[%emt 0:00:17]} Qh4+ {[%emt 0:00:00]} 37. Kg1 {[%emt 0:00:06]} Qxh5 {[%emt 0:00:00]} 38. Bc4 {[%emt 0:01:25]} Bxc4 {[%emt 0:00:00]} 39. Rxc4 {[%emt 0:00:05]} Rc8 {[%emt 0:01:56]} 40. Qa4 {[%emt 0:00:43]} Rd3 {[%emt 0:00:26]} 41. Qc2 {[%emt 0:00:13]} Rcd8 {[%emt 0:00:14]} 42. Rf1 {[%emt 0:00:45]} Qg5 {[%emt 0:00:45]} 43. Re4 {[%emt 0:00:37]} Kh8 {[%emt 0:00:35]} 44. Qc4 {[%emt 0:00:13]} R3d4 {[%emt 0:01:16]} 45. Qe2 {[%emt 0:00:17]} Qg6 {[%emt 0:00:30]} 46. Rxd4 {[%emt 0:00:18]} exd4 {[%emt 0:00:07]} 47. Qf3 {[%emt 0:00:23]} Qe8 {[%emt 0:00:39]} 48. Rd1 {[%emt 0:00:27]} Qd7 {[%emt 0:00:25]} 49. Rd3 {[%emt 0:00:28]} Qd5 {[%emt 0:00:48]} 50. Qh3 {[%emt 0:01:32]} Bxc5 {[%emt 0:00:17]} 51. Bd2 {[%emt 0:00:09]} Bf8 {[%emt 0:00:43]} 52. a4 {[%emt 0:00:27]} c5 {[%emt 0:00:13]} 53. Rg3 {[%emt 0:00:16]} Qd7 {[%emt 0:00:50]} 54. Qh5 {[%emt 0:00:12]} c4 {[%emt 0:01:19]} 55. Qg6 {[%emt 0:00:02]} Qe8 {[%emt 0:00:14]} 56. Qf5 {[%emt 0:00:10]} Bd6 {[%emt 0:01:00]} 57. Rg6 {[%emt 0:00:39]} c3 {[%emt 0:00:35]} 58. Rxf6 {[%emt 0:01:26]} gxf6 {[%emt 0:00:21]} 59. Qxf6+ {[%emt 0:00:09]} Kg8 {[%emt 0:00:04]} 0-1

[Event "2nd Cambridge Open 2024"]
[Site "Cambridge"]
[Date "2024.02.24"]
[Round "8.37"]
[White "Lazarus, Simon E"]
[Black "Ismail, Mohammed Aayan"]
[Result "1-0"]
[ECO "D30"]
[WhiteElo "1845"]
[BlackElo "2115"]
[Annotator "RC"]
[PlyCount "83"]
[EventDate "2024.02.18"]
[EventType "swiss"]
[EventCountry "ENG"]
[SourceTitle "playchess.com"]
[Source "ChessBase"]
[SourceQuality "1"]
[TimeControl "5400+30"]

1. Nf3 {[%emt 0:02:59]} Nf6 {[%emt 0:00:07]} 2. c4 {[%emt 0:00:14]} e6 {[%emt 0:00:11]} 3. d4 {[%emt 0:01:04]} d5 {[%emt 0:00:06]} 4. Bg5 {[%emt 0:01:33]} Bb4+ {[%emt 0:01:23]} 5. Nbd2 {[%emt 0:00:50]} O-O {[%emt 0:01:05]} 6. e3 {[%emt 0:01:00]} b6 {[%emt 0:02:12]} 7. cxd5 {[%emt 0:01:26]} exd5 {[%emt 0:00:08]} 8. Bd3 {[%emt 0:00:39]} Bb7 {[%emt 0:01:30]} 9. O-O {[%emt 0:01:20]} h6 {[%emt 0:01:05]} 10. Bf4 {[%emt 0:01:47]} Bd6 {[%emt 0:02:25]} 11. Bxd6 {[%emt 0:01:48]} Qxd6 {[%emt 0:00:03]} 12. Rc1 {[%emt 0:01:46]} c5 {[%emt 0:03:00]} 13. dxc5 {[%emt 0:00:26]} bxc5 {[%emt 0:00:02]} 14. Nc4 {[%emt 0:06:22]} Qe7 {[%emt 0:01:23]} 15. Na5 {[%emt 0:01:19]} Ba6 {[%emt 0:02:14]} 16. Bxa6 {[%emt 0:01:59]} Nxa6 {[%emt 0:00:02]} 17. Qe2 {[%emt 0:01:40]} c4 {[%emt 0:05:16]} 18. Nc6 {[%emt 0:06:20]} Qb7 {[%emt 0:01:36]} 19. Ncd4 {[%emt 0:01:44]} Rac8 {[%emt 0:05:05]} 20. b3 {[%emt 0:10:55]} cxb3 {[%emt 0:08:58]} 21. Nxb3 {[%emt 0:02:05]} Ne4 {[%emt 0:03:27]} 22. Nfd4 {[%emt 0:03:20]} Nb4 {[%emt 0:10:24]} 23. a3 {[%emt 0:06:28]} Nc6 {[%emt 0:01:01]} 24. Rxc6 {[%emt 0:01:31]} Rxc6 {[%emt 0:01:23]} 25. Na5 {[%emt 0:01:04]} Qa6 {[%emt 0:01:09]} 26. Naxc6 {[%emt 0:00:51]} Qxa3 {[%emt 0:00:23]} 27. Nb5 {[%emt 0:03:24]} Qc5 {[%emt 0:01:20]} 28. Nbxa7 {[%emt 0:01:37]} Ra8 {[%emt 0:02:29]} 29. Qb5 {[%emt 0:03:28]} Qd6 {[%emt 0:03:17]} 30. Qb7 {[%emt 0:02:14]} Re8 {[%emt 0:00:08]} 31. Qb4 {[%emt 0:03:30]} Qf6 {[%emt 0:00:31]} 32. Qd4 {[%emt 0:00:45]} Qf5 {[%emt 0:00:27]} 33. Nb4 {[%emt 0:03:32]} Nf6 {[%emt 0:00:55]} 34. Qd3 {[%emt 0:03:14]} Qd7 {[%emt 0:02:15]} 35. Nac6 {[%emt 0:01:15]} Qd6 {[%emt 0:00:29]} 36. h3 {[%emt 0:02:04]} Re4 {[%emt 0:00:20]} 37. Ra1 {[%emt 0:03:02]} g6 {[%emt 0:00:29]} 38. Qb5 {[%emt 0:02:28]} Kg7 {[%emt 0:00:35]} 39. Nd4 {[%emt 0:01:38]} Qe5 {[%emt 0:01:36]} 40. Nbc2 {[%emt 0:01:26]} g5 {[%emt 0:03:35]} 41. f3 {[%emt 0:05:18]} Rh4 {[%emt 0:01:32]} 42. Qd3 {[%emt 0:00:37]} 1-0

[Event "2nd Cambridge Open 2024"]
[Site "Cambridge"]
[Date "2024.02.24"]
[Round "8.38"]
[White "Bharat Kumar, Balahari"]
[Black "Cole, James"]
[Result "0-1"]
[ECO "D97"]
[WhiteElo "1995"]
[BlackElo "1940"]
[Annotator "RC"]
[PlyCount "52"]
[EventDate "2024.02.18"]
[EventType "swiss"]
[EventCountry "ENG"]
[SourceTitle "playchess.com"]
[Source "ChessBase"]
[SourceQuality "1"]
[TimeControl "5400+30"]

1. d4 {[%emt 0:00:04]} Nf6 {[%emt 0:00:04]} 2. c4 {[%emt 0:00:24]} g6 {[%emt 0:00:06]} 3. Nc3 {[%emt 0:00:06]} d5 {[%emt 0:00:09]} 4. Nf3 {[%emt 0:00:03]} Bg7 {[%emt 0:00:06]} 5. Qb3 {[%emt 0:00:06]} dxc4 {[%emt 0:00:09]} 6. Qxc4 {[%emt 0:00:04]} a6 {[%emt 0:00:45]} 7. e4 {[%emt 0:00:38]} O-O {[%emt 0:00:10]} 8. e5 {[%emt 0:00:30]} b5 {[%emt 0:00:59]} 9. Qb3 {[%emt 0:06:41]} Nfd7 {[%emt 0:00:12]} 10. e6 {[%emt 0:00:11]} fxe6 {[%emt 0:00:25]} 11. Qxe6+ {[%emt 0:00:16]} Kh8 {[%emt 0:00:32]} 12. Qe4 {[%emt 0:01:09]} Nb6 {[%emt 0:01:10]} 13. Bg5 {[%emt 0:12:53]} Bf5 {[%emt 0:06:09]} 14. Qh4 {[%emt 0:09:59]} Nc6 {[%emt 0:06:47]} 15. Be2 {[%emt 0:10:47]} b4 {[%emt 0:04:15]} 16. Ne4 {[%emt 0:01:40]} Qd5 {[%emt 0:06:28]} 17. Ng3 {[%emt 0:03:59]} Nxd4 {[%emt 0:04:19]} 18. Rd1 {[%emt 0:15:32]} Nxf3+ {[%emt 0:03:20]} 19. gxf3 {[%emt 0:03:10]} Qxa2 {[%emt 0:07:34]} 20. Bxe7 {[%emt 0:04:12]} Qxb2 {[%emt 0:12:25]} 21. Bxb4 {[%emt 0:07:25]} g5 {[%emt 0:03:56]} 22. Bxf8 {[%emt 0:04:07]} Bc3+ {[%emt 0:01:58]} 23. Kf1 {[%emt 0:00:06]} gxh4 {[%emt 0:00:16]} 24. Nxf5 {[%emt 0:00:07]} Rxf8 {[%emt 0:00:24]} 25. Rg1 {[%emt 0:01:15]} a5 {[%emt 0:04:48]} 26. Nh6 {[%emt 0:00:34]} Bg7 {[%emt 0:00:50]} 0-1

[Event "2nd Cambridge Open 2024"]
[Site "Cambridge"]
[Date "2024.02.24"]
[Round "8.39"]
[White "Asgarova, Turan"]
[Black "Gardiner, Eric D"]
[Result "1-0"]
[ECO "B13"]
[WhiteElo "1988"]
[BlackElo "1837"]
[Annotator "RC"]
[PlyCount "55"]
[EventDate "2024.02.18"]
[EventType "swiss"]
[EventCountry "ENG"]
[SourceTitle "playchess.com"]
[Source "ChessBase"]
[SourceQuality "1"]
[TimeControl "5400+30"]

1. e4 {[%emt 0:00:02]} c6 {[%emt 0:00:10]} 2. d4 {[%emt 0:00:14]} d5 {[%emt 0:00:06]} 3. exd5 {[%emt 0:00:07]} cxd5 {[%emt 0:00:09]} 4. Bd3 {[%emt 0:01:22]} Nc6 {[%emt 0:00:22]} 5. c3 {[%emt 0:00:18]} Nf6 {[%emt 0:00:16]} 6. Nf3 {[%emt 0:00:35]} Bg4 {[%emt 0:02:02]} 7. O-O {[%emt 0:00:36]} e6 {[%emt 0:01:52]} 8. h3 {[%emt 0:03:52]} Bh5 {[%emt 0:01:36]} 9. Re1 {[%emt 0:02:11]} Bd6 {[%emt 0:01:51]} 10. Nbd2 {[%emt 0:01:11]} Qc7 {[%emt 0:02:25]} 11. Nf1 {[%emt 0:03:13]} O-O-O {[%emt 0:04:12]} 12. Be3 {[%emt 0:06:32]} Bg6 {[%emt 0:06:06]} 13. b4 {[%emt 0:05:48]} Ne4 {[%emt 0:02:42]} 14. Rc1 {[%emt 0:05:52]} Kb8 {[%emt 0:02:58]} 15. a3 {[%emt 0:04:49]} f5 {[%emt 0:10:05]} 16. c4 {[%emt 0:13:18]} f4 {[%emt 0:05:50]} 17. cxd5 {[%emt 0:00:58]} exd5 {[%emt 0:00:34]} 18. b5 {[%emt 0:10:01]} fxe3 {[%emt 0:00:28]} 19. Rxe3 {[%emt 0:10:24]} Bf4 {[%emt 0:10:40]} 20. bxc6 {[%emt 0:00:45]} Bxe3 {[%emt 0:01:27]} 21. Nxe3 {[%emt 0:00:08]} bxc6 {[%emt 0:00:49]} 22. Ne5 {[%emt 0:01:30]} c5 {[%emt 0:05:02]} 23. Nxg6 {[%emt 0:05:02]} hxg6 {[%emt 0:00:03]} 24. Nxd5 {[%emt 0:00:30]} Rxd5 {[%emt 0:00:37]} 25. Qb3+ {[%emt 0:00:49]} Qb7 {[%emt 0:00:17]} 26. Qxb7+ {[%emt 0:00:20]} Kxb7 {[%emt 0:00:05]} 27. Bxe4 {[%emt 0:00:07]} Kc6 {[%emt 0:01:09]} 28. Rxc5+ {[%emt 0:00:11]} 1-0

[Event "2nd Cambridge Open 2024"]
[Site "Cambridge"]
[Date "2024.02.24"]
[Round "8.40"]
[White "Hagesather, Nina"]
[Black "Yu, Rock"]
[Result "0-1"]
[ECO "A41"]
[WhiteElo "1973"]
[BlackElo "1767"]
[Annotator "RC"]
[PlyCount "106"]
[EventDate "2024.02.18"]
[EventType "swiss"]
[EventCountry "ENG"]
[SourceTitle "playchess.com"]
[Source "ChessBase"]
[SourceQuality "1"]
[TimeControl "5400+30"]

1. d4 {[%emt 0:00:09]} d6 {[%emt 0:00:17]} 2. c4 {[%emt 0:00:35]} e5 {[%emt 0:00:01]} 3. dxe5 {[%emt 0:00:25]} dxe5 {[%emt 0:00:04]} 4. Qxd8+ {[%emt 0:02:00]} Kxd8 {[%emt 0:00:02]} 5. Nc3 {[%emt 0:07:04]} Be6 {[%emt 0:00:17]} 6. b3 {[%emt 0:03:31]} c6 {[%emt 0:01:24]} 7. Bb2 {[%emt 0:00:28]} Nd7 {[%emt 0:01:14]} 8. Nf3 {[%emt 0:01:59]} f6 {[%emt 0:00:01]} 9. e3 {[%emt 0:03:16]} Kc7 {[%emt 0:01:36]} 10. Be2 {[%emt 0:00:59]} g5 {[%emt 0:00:16]} 11. h3 {[%emt 0:02:12]} Ne7 {[%emt 0:02:54]} 12. O-O-O {[%emt 0:02:44]} Ng6 {[%emt 0:01:04]} 13. g4 {[%emt 0:06:39]} Be7 {[%emt 0:07:33]} 14. Ne4 {[%emt 0:02:41]} a5 {[%emt 0:06:12]} 15. Nfd2 {[%emt 0:12:28]} a4 {[%emt 0:06:25]} 16. Kc2 {[%emt 0:08:29]} Rhd8 {[%emt 0:06:12]} 17. Nb1 {[%emt 0:06:34]} Nh4 {[%emt 0:07:25]} 18. Nbc3 {[%emt 0:02:59]} axb3+ {[%emt 0:05:17]} 19. axb3 {[%emt 0:00:05]} Bf7 {[%emt 0:11:49]} 20. Ra1 {[%emt 0:05:34]} Rxa1 {[%emt 0:00:55]} 21. Rxa1 {[%emt 0:01:08]} Bg6 {[%emt 0:03:35]} 22. Bd3 {[%emt 0:05:19]} Nb8 {[%emt 0:03:35]} 23. Rd1 {[%emt 0:02:40]} Na6 {[%emt 0:03:18]} 24. Kc1 {[%emt 0:00:12]} Bb4 {[%emt 0:02:24]} 25. Bc2 {[%emt 0:01:51]} Rf8 {[%emt 0:08:51]} 26. Ng3 {[%emt 0:03:55]} Be7 {[%emt 0:03:59]} 27. Nce4 {[%emt 0:01:55]} Nb8 {[%emt 0:01:37]} 28. Kd2 {[%emt 0:01:49]} Nd7 {[%emt 0:00:50]} 29. Ke2 {[%emt 0:00:24]} f5 {[%emt 0:01:33]} 30. gxf5 {[%emt 0:01:11]} Nxf5 {[%emt 0:00:54]} 31. Rc1 {[%emt 0:03:50]} h5 {[%emt 0:07:37]} 32. Bd3 {[%emt 0:02:17]} h4 {[%emt 0:00:53]} 33. Nf1 {[%emt 0:00:12]} Bh5+ {[%emt 0:01:06]} 34. Kd2 {[%emt 0:01:58]} Nd6 {[%emt 0:00:49]} 35. Ke1 {[%emt 0:01:06]} Bf3 {[%emt 0:00:02]} 36. Nxd6 {[%emt 0:00:34]} Bxd6 {[%emt 0:00:25]} 37. Be2 {[%emt 0:00:18]} Bg2 {[%emt 0:00:28]} 38. Bg4 {[%emt 0:00:19]} Nc5 {[%emt 0:00:12]} 39. Rb1 {[%emt 0:02:30]} Nd3+ {[%emt 0:01:20]} 40. Ke2 {[%emt 0:01:26]} e4 {[%emt 0:01:00]} 41. f4 {[%emt 0:00:42]} gxf4 {[%emt 0:00:15]} 42. exf4 {[%emt 0:00:04]} Nxf4+ {[%emt 0:01:53]} 43. Ke3 {[%emt 0:00:54]} Nxh3 {[%emt 0:01:05]} 44. Nd2 {[%emt 0:01:31]} Nf2 {[%emt 0:01:50]} 45. Be6 {[%emt 0:01:18]} h3 {[%emt 0:00:07]} 46. Bg7 {[%emt 0:00:16]} Re8 {[%emt 0:00:52]} 47. Kxf2 {[%emt 0:02:05]} Bc5+ {[%emt 0:00:29]} 48. Ke2 {[%emt 0:00:56]} Rxe6 {[%emt 0:00:08]} 49. Nf1 {[%emt 0:00:39]} Bf3+ {[%emt 0:00:02]} 50. Ke1 {[%emt 0:00:31]} e3 {[%emt 0:00:05]} 51. Bc3 {[%emt 0:00:39]} Bd6 {[%emt 0:00:27]} 52. c5 {[%emt 0:00:23]} Bf4 {[%emt 0:00:38]} 53. Rb2 {[%emt 0:00:29]} e2 {[%emt 0:00:14]} 0-1